Cogmind - Beta 13 @@@ ROGUE MODE // 2024.05.25 @ 13:55:48 Player: H3-RMN Result: Destroyed by B4-RQN(R) with Subdweller Machine Gun Performance ------------- Evolutions (0) 0 Regions Visited (2) 400 Robots Destroyed (35) 175 Value Destroyed (895) 895 Prototype IDs (2) 40 Alien Tech Used (0) 0 Bonus (0) 0 TOTAL SCORE: 1510 Bonus ------- None Cogmind --------- Core Integrity 0/250 Matter 147/300 Energy 200/200 System Corruption 0% Temperature Cool (0) Movement Treading (240) Ox1 Location -10/Subcaves Parts ------- > --- POWER (1) -------- Subdweller Power Source > --- PROPULSION (2) --- Improved Treads Subdweller Monowheel > --- UTILITY (2) ------ Disposable Heat Sink Large Storage Unit > --- WEAPON (2) ------- Barrage Gun Improved Light Cannon > --- INVENTORY (15) --- Light Treads Improved Treads Subdweller Monowheel Large Storage Unit Makeshift Hacking Suite Makeshift System Restoration Module Makeshift Laser Battle Rifle Battle Rifle Subdweller Machine Gun Improved Light Cannon Improved Light Cannon Heavy Hammer Shrapnel Trap Shrapnel Trap Peak State ------------ > --- POWER ------------ Subdweller Power Source > --- PROPULSION ------- Improved Treads Subdweller Monowheel > --- UTILITY ---------- Large Storage Unit Subdweller Optics > --- WEAPON ----------- Battle Rifle Barrage Gun > --- INVENTORY -------- Light Treads Improved Treads Subdweller Monowheel Large Storage Unit Makeshift Hacking Suite Makeshift System Restoration Module Makeshift Laser Battle Rifle Subdweller Machine Gun Improved Light Cannon Improved Light Cannon Improved Light Cannon Heavy Hammer Shrapnel Trap Shrapnel Trap [Rating: 17] Favorites ----------- Power Ion Engine Engine Ion Engine Propulsion Improved Treads Treads Improved Treads Wheel Wheel Utility Large Storage Unit Device Improved Terrain Scanner Storage Large Storage Unit Weapon Improved Light Cannon Energy Gun Medium Laser Ballistic Gun Subdweller Machine Gun Ballistic Cannon Improved Light Cannon Launcher Grenade Launcher Build | -11 -10 -10 ------- Run | Yrd Mat Sub Slots Evolved . | . . . Power . | . . . Propulsion . | . . . Utility . | . . . Weapon . | . . . Parts Attached 36 | 6 8 22 Power 3 | 1 . 2 Engine 3 | 1 . 2 Core . | . . . Reactor . | . . . Propulsion 9 | 2 2 5 Treads 5 | 1 1 3 Leg . | . . . Wheel 4 | 1 1 2 Hover . | . . . Flight . | . . . Utility 9 | 1 2 6 Device 6 | . 1 5 Storage 3 | 1 1 1 Processor . | . . . Hackware . | . . . Protection . | . . . Artifact . | . . . Weapon 15 | 2 4 9 Energy Gun 2 | 1 . 1 Energy Cannon . | . . . Ballistic Gun 5 | 1 . 4 Ballistic Cannon 6 | . 3 3 Launcher 2 | . 1 1 Special Weapon . | . . . Impact Weapon . | . . . Slashing Weapon . | . . . Piercing Weapon . | . . . Special Melee Weapon . | . . . Unidentified Prototypes . | . . . Parts Lost 10 | . 1 9 Power 2 | . . 2 Propulsion 4 | . 1 3 Utility 2 | . . 2 Weapon 2 | . . 2 Highest Loss Streak 4 | . 1 4 To Critical Strikes . | . . . Average Slot Usage (%) 97 | . 99 96 Engine 12 | . 14 11 Treads 16 | . 14 18 Wheel 11 | . 13 9 Device 13 | . 13 13 Storage 14 | . 14 14 Ballistic Gun 2 | . . 3 Ballistic Cannon 21 | . 27 18 Launcher 3 | . . 5 Naked Turns . | . . . Heaviest Build 35 | 14 34 35 Greatest Support 46 | 20 23 46 Greatest Overweight (x) 3 | 1 3 3 Average Overweight (x) . | . 1 . Largest Inventory Capacity 15 | 8 15 15 Average Capacity 12 | 7 9 15 Most Carried 15 | 6 8 15 Average Carried 8 | 3 7 9 Final Capacity 15 | 8 15 15 Final Carried 15 | 6 8 15 Class Distribution -------------------- 100% | Mutant Dominant Class ---------------- Mutant | -10/Materials Mutant | -10/Subcaves Resources | -11 -10 -10 ----------- Run | Yrd Mat Sub Matter Collected 1187 | 287 273 627 Remotely . | . . . Salvage Created 743 | 146 283 314 Parts 51 | 9 23 19 Haulers Intercepted 1 | . 1 . Recyclers Shooed . | . . . Parts Field Recycled . | . . . Retrieved Matter . | . . . Parts Self-Destructed 4 | . . 4 Prevented . | . . . Kills | -11 -10 -10 ------- Run | Yrd Mat Sub Combat Hostiles Destroyed 29 | . 11 18 Guns 2 | . . 2 Cannons 16 | . 9 7 AOE 11 | . 2 9 Classes Destroyed 9 | 2 4 3 Tunneler 3 | 3 . . Hauler 1 | . 1 . Recycler 1 | 1 . . Operator 1 | . 1 . Swarmer 10 | . 3 7 Grunt 8 | . 8 . Sentry 1 | . . 1 Artisan 1 | . . 1 Subdweller 10 | . . 10 Best Kill Streak 4 | 4 3 4 Combat Bots Only 4 | . 3 4 Max Kills in Single Turn 3 | 1 1 3 Gunslinging . | . . . Exploded 3 | . 1 3 Melee . | . . . Uniques/NPCs Destroyed . | . . . Combat | -11 -10 -10 -------- Run | Yrd Mat Sub Hostile Shots Fired 119 | . 31 88 Missed 38 | . 12 26 Damage Taken 1435 | . 255 1180 Core 258 | . 24 234 Absorbed by Shields . | . . . Core Remaining (%) 100 | 100 . . Volleys Fired 110 | 9 28 73 Largest 2 | 2 2 2 Hottest 99 | 70 78 99 Shots Fired 205 | 18 52 135 Gun 39 | 18 . 21 Cannon 150 | . 48 102 Launcher 16 | . 4 12 Special . | . . . Kinetic 173 | 9 48 116 Thermal 16 | 9 . 7 Explosive 16 | . 4 12 Electromagnetic . | . . . Robot Hit Streak 26 | 5 6 26 Robot Miss Streak 3 | 3 2 2 Penetration Max . | . . . Secondary Targets . | . . . Shots Hit Robots 156 | 11 31 114 Core Hits 52 | 4 13 35 Critical Kills . | . . . Critical Parts Destroyed 1 | . . 1 Critical Strikes 8 | 2 1 5 Burn 2 | 2 . . Destroy 1 | . . 1 Blast 5 | . 1 4 Melee Attacks . | . . . Impact . | . . . Slashing . | . . . Piercing . | . . . Sneak Attacks . | . . . Combat Hostiles . | . . . Follow-up Attacks . | . . . Damage Inflicted 3630 | 165 814 2651 Guns 471 | 165 . 306 Cannons 2357 | . 676 1681 Explosions 802 | . 138 664 Melee . | . . . Ramming . | . . . Kinetic 2600 | 77 676 1847 Thermal 228 | 88 . 140 Explosive 802 | . 138 664 Electromagnetic . | . . . Impact . | . . . Slashing . | . . . Piercing . | . . . Highest Corruption . | . . . Average Corruption . | . . . Corruption Purged . | . . . Corruption Blocked . | . . . Overload Shots . | . . . Overflow Damage 29 | . 4 25 Projectiles 6 | . 4 2 Explosions 23 | . . 23 Melee . | . . . Knockbacks 16 | . 6 10 Impact . | . . . Kinetic 15 | . 5 10 Secondary 1 | . 1 . Self-Inflicted Damage 162 | . 40 122 Shots 5 | . 1 4 Rammed . | . . . Targets Rammed . | . . . Kicked . | . . . Crushed . | . . . Highest Temperature 299 | . 42 299 Average Temperature 44 | . 14 214 Received Heat Transfer 591 | . 99 492 Siege Activations . | . . . Robots Corrupted . | . . . Combat Hostiles . | . . . Parts Fried . | . . . Impact Corruptions . | . . . Robots Melted . | . . . Combat Hostiles . | . . . Parts Melted 1 | 1 . . Heat Transferred 582 | 407 . 175 Parts Sabotaged . | . . . Parts Stolen . | . . . Parts Stripped . | . . . Power Chain Reactions . | . . . Alert | -11 -10 -10 ------- Run | Yrd Mat Sub Peak Influence 224 | 20 224 . Initial 13 | . 13 . Average 63 | 6 68 . Maximum Alert Level 1 | . 1 . Low Security (%) 97 | 100 96 . Level 1 2 | . 3 . Level 2 . | . . . Level 3 . | . . . Level 4 . | . . . Level 5 . | . . . High Security . | . . . Max Security . | . . . Squads Dispatched 3 | . 3 . Investigation 3 | . 3 . Extermination . | . . . Reinforcement . | . . . Assault . | . . . Garrison . | . . . Intercept . | . . . Searches Triggered . | . . . Construction Impeded . | . . . Haulers Reinforced . | . . . Active Scanning Responses . | . . . Cargo Convoy Interrupts . | . . . Stealth | -11 -10 -10 --------- Run | Yrd Mat Sub Distress Signals 1 | . 1 . Communications Jammed . | . . . Distress Signals . | . . . Times Spotted 59 | . 23 36 Peak Tracking Total 6 | . 6 6 Tactical Retreats 3 | . 1 2 Traps | -11 -10 -10 ------- Run | Yrd Mat Sub Traps Triggered 3 | . 2 1 Indirectly . | . . . Trap Hack Attempts . | . . . Triggered . | . . . Disarmed . | . . . Reprogrammed . | . . . Reused . | . . . Traps Extracted . | . . . Installed . | . . . Triggered . | . . . Most Traps Carried 2 | . . 2 Machines | -11 -10 -10 ---------- Run | Yrd Mat Sub Machines Disabled 5 | . 2 3 Max in Single Turn 2 | . 1 2 Machines Repaired . | . . . Machines Dismantled . | . . . Machines Sabotaged . | . . . Overloaded Fab Kills . | . . . Hacking | -11 -10 -10 --------- Run | Yrd Mat Sub Machines Accessed 4 | . 4 . Terminals 3 | . 3 . Fabricators . | . . . Repair Stations . | . . . Recycling Units 1 | . 1 . Scanalyzers . | . . . Garrison Access . | . . . Total Hacks 13 | . 13 . Successful 7 | . 7 . Failed 6 | . 6 . Catastrophic 3 | . 3 . Database Lockouts . | . . . Manual 11 | . 11 . Terminals 10 | . 10 . Fabricators . | . . . Repair Stations . | . . . Recycling Units 3 | . 3 . Scanalyzers . | . . . Garrison Access . | . . . Terminal Hacks 6 | . 6 . Part Schematic 2 | . 2 . Robot Analysis 2 | . 2 . Prototype ID Bank 1 | . 1 . Zone Layout 1 | . 1 . Fabricator Hacks . | . . . Repair Station Hacks . | . . . Recycling Unit Hacks . | . . . Scanalyzer . | . . . Garrison Access Hacks . | . . . Unauthorized Hacks 1 | . 1 . Terminals . | . . . Fabricators . | . . . Repair Stations . | . . . Recycling Units 1 | . 1 . Tunnel 1 | . 1 . Scanalyzers . | . . . Garrison Access . | . . . Data Cores Recovered . | . . . Used . | . . . Hacking Detections 4 | . 4 . Full Trace Events 2 | . 2 . Feedback Events . | . . . Feedback Blocked . | . . . Robot Schematics Acquired . | . . . Robots Built . | . . . Authchips . | . . . Time . | . . . Total Robot Build Rating . | . . . Part Schematics Acquired 2 | . 2 . Parts Built . | . . . Authchips . | . . . Time . | . . . Total Part Build Rating . | . . . Parts Repaired . | . . . Time . | . . . Parts Recycled . | . . . Recycled Matter . | . . . Retrieved Matter . | . . . Retrieved Components . | . . . Parts Scanalyzed . | . . . Part Schematics Acquired . | . . . Parts Damaged . | . . . Bothacking | -11 -10 -10 ------------ Run | Yrd Mat Sub Used RIF Installer . | . . . Robots Hacked . | . . . Non-combat . | . . . Combat . | . . . Robot Hacks Applied . | . . . Relay Couplers Released . | . . . Fabnet Peak Effective % . | . . . Robots Rewired . | . . . Allies Hacked . | . . . Hacks Repelled . | . . . Allies | -11 -10 -10 -------- Run | Yrd Mat Sub Total Allies . | . . . Largest Group . | . . . Highest-Rated Group . | . . . Highest-Rated Ally . | . . . Total Orders . | . . . Ally Attacks . | . . . Total Damage . | . . . Kills . | . . . Allies Corrupted . | . . . Allies Melted . | . . . Intel | -11 -10 -10 ------- Run | Yrd Mat Sub Robot Analysis Total 2 | . 2 . Derelict Logs Recovered 1 | . . 1 Drone Launches . | . . . Drone Recoveries . | . . . Exploration | -11 -10 -10 ------------- Run | Yrd Mat Sub Turns Passed 2833 | 106 1072 1655 Spaces Moved 1369 | 69 415 885 Core 1 | 1 . . Treads 444 | 1 110 333 Legs . | . . . Wheels 924 | 67 305 552 Hover . | . . . Flight . | . . . Fastest Speed 50 | 50 95 120 Average Speed 128 | 93 120 135 Slowest Speed 160 | 160 160 160 Overloaded Moves . | . . . Propulsion Burnouts . | . . . Robots Hopped . | . . . Cave-ins Triggered . | . . . Exploration Rate (%) 34 | 4 47 52 Regions Visited 2 Branch Regions 1 Pre-discovered Areas 3 | . 1 2 Known Exits Taken . | . . . Unknown Exits Taken 2 | 1 1 . Scrap Searched 8 | . . 8 Spaces Dug 12 | . . 12 Terrain Destroyed 81 | . 30 51 Melee . | . . . Projectile 4 | . 4 . AOE 77 | . 26 51 Terrain Rammed . | . . . Walls Destroyed . | . . . Machines Disabled . | . . . Actions | -11 -10 -10 --------- Run | Yrd Mat Sub Total 2225 | 89 938 1198 Wait 663 | . 470 193 Move 1367 | 68 414 885 Hop . | . . . Pick Up 31 | 6 8 17 Fast Attach 14 | 6 2 6 Attach 9 | . 2 7 Detach 2 | . 2 . Swap 13 | . 4 9 Drop 16 | . 8 8 Fire 110 | 9 28 73 Melee . | . . . Ram . | . . . Kick . | . . . Crush . | . . . Escape Stasis . | . . . Rewire . | . . . Trap . | . . . Miscellaneous . | . . . Route ------- -11/Scrapyard -10/Materials (discovered 2 exits: [*Mat] / [*Sub]) -10/Subcaves (discovered 2 exits: [*Mat] / [*Rec]) History --------- Turn | Location | Event 12 | -11/Scrapyard | Discovered new exit (range 15) 107 | -11/Scrapyard | Entered Materials 309 | -10/Materials | Discovered new exit (range 13) 353 | -10/Materials | Build established: Mutant 1138 | -10/Materials | Discovered new exit (range 14) 1179 | -10/Materials | Entered Subcaves 1222 | -10/Subcaves | Learned location of Zion (-7) 1222 | -10/Subcaves | Met a Zionite searching for "candidates" 1500 | -10/Subcaves | Learned location of Mines (-9) 1686 | -10/Subcaves | Shifting Twisted Machinery released Mak. Hacking Suite 1695 | -10/Subcaves | Shifting Twisted Machinery released Mak. System Restoration Module 1729 | -10/Subcaves | Discovered new exit (range 12) 1884 | -10/Subcaves | Discovered new exit (range 7) 1975 | -10/Subcaves | Lost 4 parts (1p2n1w) 2096 | -10/Subcaves | Core integrity fell below 50% 2232 | -10/Subcaves | Core integrity fell below 20% 2777 | -10/Subcaves | Ambushed by angry Subdweller bent on revenge 2834 | -10/Subcaves | Destroyed by B4-RQN(R) with Subdweller Machine Gun Last Messages --------------- 02634_ Found Battle Rifle. 02634_ Found Sub. Monowheel. 02634_ Found 20 Matter. 02635_ Acquired 20 matter. 02733_ HO-MO9(u) deconstructs Twisted Machinery. 02733_ Dropped Broken Sub. Optics. 02734_ Acquired Broken Sub. Optics. 02735_ HO-MO9(u) deconstructs Twisted Machinery. 02771_ HO-MO9(u) suffers critical hit (Destroy). 02771_ Destroyed Wheel. 02774_ HO-MO9(u) cries out in pain. 02774_ HO-MO9(u) destroyed. 02787_ NH-ZMP(R): "ECOKILL!" 02790_ NH-ZMP(R) destroyed. 02793_ Acquired 28 matter. 02796_ Dropped Broken Sub. Optics. 02796_ Acquired Disposable Heat Sink. 02799_ Acquired 4 matter. 02831_ NT-WJ9(R) knocked back. Map ----- +----------------------------------------------------+ | | | | | | | | | | | | | ?????????????????????????????????????????????????? | | ?????????????????????????????????????????????????? | | ?????????????????????????????????????????????????? | | ?????????????????????????????????????????????????? | | ?????????????????????????????????????????????????? | | ?????????????????????????????????????????????????? | | ?????????????????????????????????????????????????? | | ?????????????????????????????????????????????????? | | ?????????????????????????????????????????????????? | | ?????????????????????????????????????????????????? | | ?????????????????????????????????????????????????? | | ?????????????????????????????????????????????????? | | ?????????????????????????????????????????????????? | | ?????????????????????????????????????????????????? | | ?????????????????????????????????????????????????? | | ????????????????????????????????#####????????????? | | ??????????????????????????####### ##########???? | | ??????????? ??????????## ## ##### | | ?????????????? ?????## #" | | ??????????????????# ##@ # ## # | | ??????????????????# R % # #### * | | ??????????????????# R ## #?##! # | | ??????????????????## #### ### #?#### | | ???????????????????# #???# ##?#### #????# | | ???????????????????#### ????# ###??????###???## | | ??????????????????????##????####??????????????# | | ??????????????????????????????????????????????# % | | ??????????????????????????????????????????????## | | ???????????????????????????????????????????????# | | ??????????????????????????????????????????????##"" | | ??????????????????????????????????????????????# | | ????????????????????????????????###########??# | | ??????????????????????????????###""" ""##?# | | ??????????????????????????????#" [ "" "### ### | | ?????????????????????????????## ####" "###??? | | ?????????????????????????????#"" "#??## "#????? | | ?????????????????????????????#" | "##???# #????? | | ?????????????????????????????##"" "##??### "#????? | | ??????????????????????????????######???#" "####?? | | ??????????????????????????????##########" ### ##? | | ??????????????????????????????#" ["# ### ## | | ??????????????????????????????#" ##" # # | | ??????????????????????????????##= ## ## # | | ?????????????????????????????#######" "#### | +----------------------------------------------------+ Best States ------------- Heat Dissipation 25 Coolant Potential 50 Energy Generation 10 Energy Capacity 250 Matter Stores 300 Matter Capacity 300 Sight Range 21 Terrain Scan Range 16 Terrain Scan Density 10 Evasion (%) 44 Recoil Reduction 2 Item Schematics ----------------- Hcp. Storage Unit | -10/Materials | Hacked Huge Storage Unit | -10/Materials | Hacked Robot Schematics ------------------ None Fabricated ------------ Nothing Alien Tech Used ----------------- None Achievements -------------- None Challenges ------------ None Game ------ Seed HeatGreatBattery Manual? 0 Play Time 00:17:19 Cumulative 771.4 hours Start 2024.05.25 @ 13:31:25 End 2024.05.25 @ 13:55:48 Sessions 1 Manual Loads 0 Difficulty Rogue Special Mode None Game No. 319 Rogue 289 Adventurer 3 Explorer 27 Win Type - Total 17 Types 10/3/2/1/0/1/0/0/0 Lore% 92 Gallery% 97 Achievement% 86 Wizard Run 0 Options --------- Layout 2 ASCII 0 Keyboard 0 Movement Numpad Keybinds 0 Fullscreen 2 Font 24/Smallcaps Map View 50x44 Zoom Use 0% Tactical HUD 1 Map Filters NONE Filters NONE Steam 1 RUN: daabc2dc-6347-4996-ab3b-7108074c9446